bitfinex-derivatives/quotes_BTCF0:USTF0_20250608
["timestamp","ask_amount","ask_price","bid_price","bid_amount"]
[1749390695705,0.188878,105840.0,105830.0,1.10922665]
[1749390695898,1.50221988,105840.0,105830.0,1.06200255]
[1749390696099,1.50221988,105840.0,105830.0,0.85794507]
[1749390696302,1.50221988,105840.0,105830.0,0.38254507]
[1749390697204,1.50221988,105840.0,105830.0,0.14643157]
[1749390697704,1.50321988,105840.0,105830.0,0.14843157]
[1749390697904,1.50421988,105840.0,105830.0,0.15043157]
[1749390699500,1.50421988,105840.0,105830.0,0.004]
[1749390700105,1.50421988,105840.0,105830.0,0.15043157]
[1749390700894,1.50421988,105840.0,105830.0,0.004]
[1749390702300,1.50421988,105840.0,105830.0,0.12150811]
[1749390702506,1.49925988,105840.0,105830.0,0.004]
[1749390702701,1.37725988,105840.0,105830.0,0.004]
[1749390703005,1.49945988,105840.0,105830.0,0.004]
[1749390705002,1.49945988,105840.0,105830.0,0.12148976]
[1749390705515,1.49945988,105840.0,105830.0,0.004]
[1749390705709,1.49945988,105840.0,105830.0,0.12148435]
[1749390706513,1.49945988,105840.0,105830.0,0.004]
[1749390708909,1.49945988,105840.0,105830.0,0.12147096]
[1749390709615,1.49945988,105840.0,105830.0,0.12555295]
[1749390711521,0.1888958,105830.0,105820.0,0.07517882]
[1749390711711,0.188913,105820.0,105810.0,0.97245406]
[1749390712015,1.7199581,105820.0,105810.0,0.50297406]
[1749390712313,1.9071581,105820.0,105810.0,0.64504136]
[1749390713016,1.9071581,105820.0,105810.0,0.59780866]
[1749390713406,1.9071581,105820.0,105810.0,0.67426269]
[1749390713618,1.9081581,105820.0,105810.0,0.67726269]
[1749390713810,1.9081581,105820.0,105810.0,0.63002999]
[1749390714203,3.4081581,105820.0,105810.0,0.25181409]
[1749390714411,0.1889487,105800.0,105790.0,1.0768787]
[1749390714607,0.69084978,105800.0,105790.0,1.1034787]
[1749390714805,0.69084978,105800.0,105790.0,1.10752748]
[1749390715409,0.69084978,105800.0,105790.0,1.06028938]
[1749390715606,0.69084978,105800.0,105790.0,0.87132878]
[1749390715819,0.69084978,105800.0,105790.0,0.86728]
[1749390716420,0.69084978,105800.0,105790.0,0.3988]
[1749390716615,0.69084978,105800.0,105790.0,0.86656]
[1749390716819,0.69284978,105800.0,105790.0,1.07803716]
[1749390717218,0.69284978,105800.0,105790.0,1.15433246]
[1749390718819,0.69284978,105800.0,105790.0,1.34330016]
[1749390719707,0.50390108,105800.0,105790.0,1.34330016]
[1749390720319,0.69285088,105800.0,105790.0,1.15317246]
[1749390720820,0.69285088,105800.0,105790.0,1.34214016]
[1749390721222,0.69285088,105800.0,105790.0,1.15281246]
[1749390721416,0.50390108,105800.0,105790.0,1.34178176]
[1749390721721,0.69285088,105800.0,105790.0,1.34170176]
[1749390722115,0.69285088,105800.0,105790.0,0.68657246]
[1749390722314,0.69285088,105800.0,105790.0,1.34150016]
[1749390722512,1.12413598,105800.0,105790.0,0.68657246]
[1749390722716,1.12413598,105800.0,105780.0,0.40289319]
[1749390722717,0.1889677,105790.0,105780.0,0.40289319]
[1749390722917,0.98155534,105790.0,105780.0,0.21917962]
[1749390723227,0.1890368,105760.0,105750.0,0.94867729]
[1749390723420,1.10092807,105760.0,105750.0,0.94859729]
[1749390723621,0.91189127,105760.0,105750.0,0.94859729]
[1749390723819,0.91197211,105760.0,105750.0,0.6547591]
[1749390724217,1.62679701,105760.0,105750.0,0.02639613]
[1749390724418,1.53227751,105760.0,105750.0,0.1890382]
[1749390724720,1.67506491,105760.0,105750.0,0.001]
[1749390724916,0.20848607,105750.0,105740.0,0.07505573]
[1749390725112,0.189074,105730.0,105720.0,0.40831065]
[1749390725312,1.48348913,105730.0,105720.0,0.02692941]
[1749390725522,1.48348913,105730.0,105720.0,0.18918875]
[1749390725523,1.3598864,105730.0,105720.0,0.18918875]
[1749390725822,1.34063637,105730.0,105720.0,0.26292013]
[1749390726020,0.61903637,105730.0,105720.0,0.45492013]
[1749390726215,1.16891097,105730.0,105720.0,0.45492013]
[1749390726421,0.48333127,105730.0,105720.0,0.83472013]
[1749390726828,0.67240577,105730.0,105720.0,0.83472013]
[1749390727129,0.48333127,105730.0,105720.0,0.83472013]
[1749390727318,0.67340577,105730.0,105720.0,0.83472013]
[1749390727719,0.67440577,105730.0,105720.0,0.83472013]
[1749390727920,1.29218141,105730.0,105720.0,0.07382773]
[1749390728126,1.47418141,105730.0,105720.0,9.635e-05]
[1749390728425,1.47418141,105730.0,105720.0,0.18918875]
[1749390729120,1.10310691,105730.0,105720.0,0.18918875]
[1749390729323,0.67182181,105730.0,105690.0,0.4080858]
[1749390729528,0.18936137,105710.0,105700.0,0.5752]
[1749390729828,1.12299034,105710.0,105700.0,0.07524382]
[1749390730032,0.0472819,105700.0,105690.0,0.1]
[1749390730215,0.2364418,105690.0,105670.0,2.138402]
[1749390730416,0.91199127,105680.0,105670.0,2.0438131]
[1749390730617,0.91224254,105680.0,105670.0,2.0438131]
[1749390731127,0.55144254,105680.0,105670.0,2.50783245]
[1749390731321,0.55144254,105680.0,105670.0,2.14703245]
[1749390731723,0.55144254,105680.0,105670.0,2.14687245]
[1749390731922,0.42912254,105680.0,105670.0,2.14687245]
[1749390732225,0.54812254,105680.0,105670.0,2.52216979]
[1749390732428,0.54812254,105680.0,105670.0,2.50767245]
[1749390732733,0.54812254,105680.0,105670.0,2.96142513]
[1749390732934,0.43012254,105680.0,105670.0,2.96142471]
[1749390733231,0.54912254,105680.0,105670.0,2.96140184]
[1749390733623,0.54912254,105680.0,105670.0,2.60060184]
[1749390733932,0.55012254,105680.0,105670.0,1.67959245]
[1749390734130,0.73928604,105680.0,105670.0,2.16081772]
[1749390734331,0.55012254,105680.0,105670.0,2.14639245]
[1749390734727,0.55012254,105680.0,105670.0,2.16089838]
[1749390734927,0.55012254,105680.0,105670.0,2.16065839]
[1749390735134,0.91092254,105680.0,105670.0,2.1741783]
[1749390735331,0.55012254,105680.0,105670.0,2.14619245]
[1749390735530,0.55012254,105680.0,105670.0,2.16070877]
[1749390735827,0.55012254,105680.0,105670.0,1.69305269]
[1749390736028,0.55012254,105680.0,105670.0,1.67959245]
[1749390736225,1.28978584,105680.0,105670.0,1.69410876]
[1749390736427,1.72107094,105680.0,105670.0,1.11720196]
[1749390736621,0.55016254,105680.0,105670.0,1.76069858]
[1749390736832,0.55016254,105680.0,105670.0,2.14253858]
[1749390737234,0.91096254,105680.0,105670.0,2.11423931]
[1749390737431,0.73932584,105680.0,105670.0,1.66127765]
[1749390737632,1.52424764,105680.0,105670.0,2.12882026]
[1749390737831,1.16344764,105680.0,105670.0,2.12886046]
[1749390738034,0.98144764,105680.0,105670.0,1.64743931]
[1749390738330,0.55016254,105680.0,105670.0,2.14239161]
[1749390738633,0.55016254,105680.0,105670.0,2.14232267]
[1749390738838,0.55016254,105680.0,105670.0,2.71859345]
[1749390739137,0.43112254,105680.0,105670.0,2.71849704]
[1749390739341,0.43112254,105680.0,105670.0,2.95487241]
[1749390739533,0.43112254,105680.0,105670.0,3.05366784]
[1749390739534,0.55016254,105680.0,105670.0,3.05366784]
[1749390739838,0.55016254,105680.0,105670.0,3.16838691]
[1749390740034,0.43112254,105680.0,105670.0,3.04420251]
[1749390740229,0.55016254,105680.0,105670.0,2.92248327]
[1749390740431,0.55016254,105680.0,105670.0,2.92248692]
[1749390740736,0.54524123,105680.0,105670.0,3.15773863]
[1749390741038,0.42620123,105680.0,105670.0,3.15770528]
[1749390741233,0.54524123,105680.0,105670.0,3.15885677]
[1749390741438,0.54524123,105680.0,105670.0,3.17235204]
[1749390741640,0.51745103,105680.0,105670.0,3.26697812]
[1749390741829,0.09494,105690.0,105680.0,0.2364543]
[1749390742030,0.42370547,105710.0,105700.0,0.1891277]
[1749390742339,0.54161987,105710.0,105700.0,0.6693375]
[1749390742634,0.54161987,105710.0,105700.0,0.8492371]
[1749390742836,0.54171735,105710.0,105700.0,1.32276686]
[1749390743043,0.54171735,105710.0,105700.0,1.68356686]
[1749390743243,0.54171735,105710.0,105700.0,1.66891746]
[1749390743535,0.54171735,105710.0,105700.0,1.68356581]
[1749390743741,0.54171735,105710.0,105700.0,1.6835639]
[1749390744040,0.54171735,105710.0,105700.0,1.66891746]
[1749390744340,0.54371735,105710.0,105700.0,0.7479277]
[1749390744532,0.54371735,105710.0,105700.0,1.22777585]
[1749390744737,0.54471735,105710.0,105700.0,1.22777583]
[1749390744936,0.54471735,105710.0,105700.0,1.58857592]
[1749390745139,0.54471735,105710.0,105700.0,1.1087277]
[1749390745444,0.54471735,105710.0,105700.0,1.5742477]
[1749390745631,0.54471735,105710.0,105700.0,2.02749862]
[1749390745838,0.54471735,105710.0,105700.0,1.7633357]
[1749390746040,0.54471735,105710.0,105700.0,1.4024157]
[1749390746241,0.54471735,105710.0,105700.0,1.7632157]
[1749390746435,0.54471735,105710.0,105700.0,1.4024157]
[1749390746647,0.54471735,105710.0,105700.0,1.7632157]
[1749390747344,0.54471735,105710.0,105700.0,0.5588]
[1749390747542,0.54471735,105710.0,105700.0,0.7479277]
[1749390747846,1.52591225,105710.0,105700.0,0.46472]
[1749390748037,0.1891277,105700.0,105690.0,0.0001416]
[1749390748238,0.8243851,105700.0,105690.0,0.6531616]
[1749390748434,0.3931,105700.0,105690.0,0.6531616]
[1749390748640,0.56369287,105710.0,105700.0,0.1891277]
[1749390748841,0.99385237,105710.0,105700.0,0.1891277]
[1749390749047,1.18055237,105710.0,105700.0,0.3803277]
[1749390749239,1.18055237,105710.0,105700.0,0.8453677]
[1749390749541,0.44252727,105710.0,105700.0,1.7689757]
[1749390749740,0.56156727,105710.0,105700.0,1.7689757]
[1749390750643,0.55956727,105710.0,105700.0,1.8689757]
[1749390750844,0.56056727,105710.0,105700.0,1.8689757]
[1749390751339,0.56256727,105710.0,105700.0,2.3135786]
[1749390751841,0.55828957,105710.0,105700.0,2.3135786]
[1749390752149,0.55828957,105710.0,105700.0,2.0635786]
[1749390752345,0.1191816,105720.0,105710.0,0.1891098]
[1749390752536,0.0001416,105720.0,105710.0,1.1336938]
[1749390752736,0.0001416,105720.0,105710.0,1.2180938]
[1749390752941,0.1191816,105720.0,105710.0,1.7769767]
[1749390753345,0.11926771,105720.0,105710.0,1.7769767]
[1749390753649,0.11926771,105720.0,105710.0,1.7766967]
[1749390753847,0.12226771,105720.0,105710.0,1.7766967]
[1749390754047,0.12226771,105720.0,105710.0,1.3126967]
[1749390754244,0.12226771,105720.0,105710.0,1.7765767]
[1749390754443,0.12526771,105720.0,105710.0,1.7765767]
[1749390754751,0.12326771,105720.0,105710.0,1.7775767]
[1749390755350,0.12326771,105720.0,105710.0,1.78162548]
[1749390755551,0.12026771,105720.0,105710.0,1.78162548]
[1749390755751,0.12126771,105720.0,105710.0,1.78262548]
[1749390756050,0.12151898,105720.0,105710.0,1.78262548]
[1749390756250,0.12151898,105720.0,105710.0,1.78194548]
[1749390756554,0.09751898,105720.0,105710.0,1.78194548]
[1749390757642,0.09751898,105720.0,105710.0,1.12956148]
[1749390757846,0.09751898,105720.0,105710.0,1.54452547]
[1749390758049,0.48191898,105720.0,105710.0,1.34992547]
[1749390758350,0.48191898,105720.0,105710.0,1.16552547]
[1749390758850,0.48191898,105720.0,105710.0,1.01871858]
[1749390759242,0.09751898,105720.0,105710.0,1.01871858]
[1749390759544,0.09751898,105720.0,105710.0,1.39841858]
[1749390759949,0.48191898,105720.0,105710.0,1.39841858]
[1749390760649,0.28911898,105720.0,105710.0,1.39841858]
[1749390760953,0.31293738,105720.0,105710.0,1.39841858]
[1749390761850,0.50283738,105720.0,105710.0,1.39841858]
[1749390762045,0.50283738,105720.0,105710.0,1.01871858]
[1749390762553,0.50283738,105720.0,105710.0,0.55595858]
[1749390762950,0.50283738,105720.0,105710.0,1.01739858]
[1749390763150,0.50283738,105720.0,105710.0,0.55595858]
[1749390763362,0.50283738,105720.0,105710.0,1.01723858]
[1749390763547,0.50283738,105720.0,105710.0,0.55595858]
[1749390763748,1.14238362,105720.0,105710.0,0.36684878]
[1749390763943,1.14229751,105720.0,105710.0,0.82800878]
[1749390764264,1.31400561,105720.0,105710.0,0.65631858]
[1749390764451,0.95320561,105720.0,105710.0,0.65631858]
[1749390765257,0.95000561,105720.0,105710.0,0.65631858]
[1749390765651,0.83420561,105720.0,105710.0,1.01711858]
[1749390765855,0.40301321,105720.0,105710.0,1.01711858]
[1749390766050,0.32891321,105720.0,105710.0,1.70688971]
[1749390766351,0.13731321,105720.0,105710.0,1.90258971]
[1749390766857,0.02151321,105720.0,105710.0,1.90258971]
[1749390767059,0.13731321,105720.0,105710.0,1.99718366]
[1749390767246,0.02151321,105720.0,105710.0,2.09718366]
[1749390767452,0.02151321,105720.0,105710.0,2.28636766]
[1749390767652,0.13731321,105720.0,105710.0,2.28636766]
[1749390768351,0.0002,105770.0,105760.0,0.1890204]
[1749390768660,0.1872,105770.0,105760.0,1.0111804]
[1749390768850,0.8100851,105770.0,105760.0,1.08496798]
[1749390769050,0.8102851,105770.0,105760.0,0.66996516]
[1749390769250,0.8102851,105770.0,105760.0,1.13120516]
[1749390769450,0.37907655,105770.0,105760.0,1.13120516]
[1749390769651,0.9260851,105770.0,105760.0,1.27819724]
[1749390769853,0.9258851,105770.0,105760.0,1.27819724]
[1749390770054,0.93419457,105770.0,105760.0,1.27819724]
[1749390770359,0.50270947,105770.0,105760.0,1.13120516]
[1749390770556,0.50290947,105770.0,105760.0,1.52737629]
[1749390770745,0.49490947,105770.0,105760.0,1.52737629]
[1749390770951,0.50790947,105770.0,105760.0,1.32380516]
[1749390771153,0.39210947,105770.0,105760.0,1.32380516]
[1749390771458,0.12190947,105770.0,105760.0,1.72150516]
[1749390771661,0.13467885,105780.0,105770.0,0.1890025]
[1749390771960,0.13467885,105780.0,105770.0,1.43647667]
[1749390772657,0.13473451,105780.0,105770.0,1.43647667]
[1749390772858,0.13973451,105780.0,105770.0,1.43747667]
[1749390773158,0.02413451,105780.0,105770.0,1.43747667]
[1749390773651,0.02413451,105780.0,105770.0,1.37852789]
[1749390773958,0.02393451,105780.0,105770.0,1.37852789]
[1749390774461,0.02793451,105780.0,105770.0,1.37952789]
[1749390774752,0.02813451,105780.0,105770.0,1.37952789]
[1749390775253,0.02793451,105780.0,105770.0,1.37952789]
[1749390775453,0.02813451,105780.0,105770.0,1.37952789]
[1749390775758,0.02793451,105780.0,105770.0,1.47406818]
[1749390775960,0.02813451,105780.0,105770.0,1.47406818]
[1749390776358,0.02813451,105780.0,105770.0,1.67954235]
[1749390776558,0.02413451,105780.0,105770.0,1.53201696]
[1749390776753,0.02613451,105780.0,105770.0,1.53201696]
[1749390777458,0.02413451,105780.0,105770.0,1.47376468]
[1749390777847,0.01913451,105780.0,105770.0,1.47376468]
[1749390779258,0.01913451,105780.0,105770.0,1.83456468]
[1749390779859,0.01713451,105780.0,105770.0,1.83456468]
[1749390782361,0.01713451,105780.0,105770.0,2.19264468]
[1749390782562,0.38313451,105780.0,105770.0,2.19264468]
[1749390783163,0.38313451,105780.0,105770.0,2.04642279]
[1749390783568,0.38313451,105780.0,105770.0,2.19264468]
[1749390784065,0.38313451,105780.0,105770.0,1.73456468]
[1749390784267,0.38313451,105780.0,105770.0,2.19216468]
[1749390784759,0.38313451,105780.0,105770.0,2.04594279]
[1749390784959,0.38313451,105780.0,105770.0,2.04578279]
[1749390785163,0.01713451,105780.0,105770.0,1.83456468]
[1749390785361,0.01713451,105780.0,105770.0,2.14562279]
[1749390785565,0.11576,105790.0,105780.0,0.1889839]
[1749390785772,0.31186,105800.0,105790.0,0.188966]
[1749390786067,0.74289383,105800.0,105790.0,1.00750854]
[1749390786768,0.54106743,105810.0,105800.0,0.1889487]
[1749390787070,0.5471867,105810.0,105800.0,0.54999997]
[1749390787268,0.5471867,105810.0,105800.0,0.92769997]
[1749390787468,0.1161016,105810.0,105800.0,1.02221346]
[1749390788266,0.1159016,105810.0,105800.0,1.02221346]
[1749390788568,0.1201016,105810.0,105800.0,1.02321346]
[1749390789364,0.1241016,105810.0,105800.0,1.02421346]
[1749390790064,0.0083416,105810.0,105800.0,1.02421346]
[1749390791275,0.0083416,105810.0,105800.0,1.12421346]
[1749390795271,0.0083416,105810.0,105800.0,1.27021276]
[1749390795572,0.0083416,105810.0,105800.0,1.72549276]
[1749390795869,0.0043416,105810.0,105800.0,1.26921276]
[1749390796076,0.4386267,105810.0,105800.0,1.15219927]
[1749390796374,0.3935416,105810.0,105800.0,0.55099997]
[1749390796569,0.8248267,105810.0,105800.0,1.15219927]
[1749390796872,0.8248267,105810.0,105800.0,0.36205127]
[1749390797172,0.8248267,105810.0,105800.0,1.00612087]
[1749390797783,0.8238267,105810.0,105800.0,1.00512087]
[1749390799174,0.8238267,105810.0,105800.0,0.55000087]
[1749390799369,0.8238267,105810.0,105800.0,1.00472087]
[1749390800973,0.8238267,105810.0,105800.0,1.00876965]
[1749390801478,0.9366267,105810.0,105800.0,1.00876965]
[1749390801678,0.9366267,105810.0,105800.0,0.55404965]
[1749390801870,0.9366267,105810.0,105800.0,1.00820965]
[1749390804478,0.9366267,105810.0,105800.0,1.15420895]
[1749390804876,0.9366267,105810.0,105800.0,1.00820965]
[1749390805372,0.9366267,105810.0,105800.0,1.15420895]
[1749390809872,0.9364267,105810.0,105800.0,1.15420895]
[1749390810183,0.7484267,105810.0,105800.0,1.21368382]
[1749390810383,0.3171416,105810.0,105800.0,1.57110965]
[1749390810579,0.3173416,105810.0,105800.0,1.86335485]
[1749390811284,0.3171416,105810.0,105800.0,1.77670331]
[1749390811584,0.3173416,105810.0,105800.0,1.77670331]
[1749390811974,0.3173416,105810.0,105800.0,1.71796195]
[1749390812175,0.5038416,105810.0,105800.0,1.57110965]
[1749390812583,0.5038416,105810.0,105800.0,1.71797907]
[1749390812776,0.5038416,105810.0,105800.0,1.26381907]
[1749390812982,0.9351267,105810.0,105800.0,1.15479907]
[1749390813178,0.9351267,105810.0,105800.0,0.70091907]
[1749390813378,0.9351267,105810.0,105800.0,1.21361433]
[1749390813784,0.8223267,105810.0,105800.0,0.20998473]
[1749390813977,1.124057,105810.0,105800.0,0.81083716]
[1749390814291,1.124057,105810.0,105800.0,0.79410068]
[1749390814292,0.9351267,105810.0,105800.0,0.79410068]
[1749390815086,0.9351267,105810.0,105800.0,0.64712825]
[1749390816480,1.124057,105810.0,105800.0,0.64708825]
[1749390816878,0.9351267,105810.0,105800.0,0.64708825]
[1749390818886,0.9351267,105810.0,105800.0,0.64733952]
[1749390819288,1.124057,105810.0,105800.0,0.19349952]
[1749390819590,1.1240576,105810.0,105800.0,0.64737952]
[1749390820490,0.9351267,105810.0,105800.0,0.64737952]
[1749390820692,1.124057,105810.0,105800.0,0.64737952]
[1749390821483,0.9351267,105810.0,105800.0,0.64737952]
[1749390821787,0.9351267,105810.0,105800.0,0.79435195]
[1749390821993,0.9351267,105810.0,105800.0,0.34047195]
[1749390822293,1.1240576,105810.0,105800.0,0.79431195]
[1749390823291,1.1240576,105810.0,105800.0,1.22040609]
[1749390824688,1.1240576,105810.0,105800.0,0.85960609]
[1749390824885,1.1240576,105810.0,105800.0,1.22040609]
[1749390825378,1.1240576,105810.0,105800.0,0.76656609]
[1749390825583,1.1240576,105810.0,105800.0,1.22040609]
[1749390826080,1.1240576,105810.0,105800.0,0.85960609]
[1749390826390,1.1240576,105810.0,105800.0,1.22040609]
[1749390826788,1.1240576,105810.0,105800.0,0.85960609]
[1749390826986,1.1240576,105810.0,105800.0,1.22040609]
[1749390827192,1.1240576,105810.0,105800.0,0.85960609]
[1749390828295,1.1240576,105810.0,105800.0,1.22040609]
[1749390828696,1.1240576,105810.0,105800.0,0.85960609]
[1749390828895,1.1240576,105810.0,105800.0,0.67065789]
[1749390829097,1.1240576,105810.0,105800.0,0.85960659]
[1749390831493,0.9351267,105810.0,105800.0,1.22040659]
[1749390831693,0.9351267,105810.0,105800.0,1.40830659]
[1749390831893,0.9351267,105810.0,105800.0,1.60520659]
[1749390832086,1.3637267,105810.0,105800.0,1.60522136]
[1749390832290,1.0642267,105810.0,105800.0,1.60522136]
[1749390832500,0.9780667,105810.0,105800.0,1.60522136]
[1749390832899,0.9778667,105810.0,105800.0,1.45823416]
[1749390833102,0.9780667,105810.0,105800.0,1.45823416]
[1749390833296,0.8662267,105810.0,105800.0,1.45823416]
[1749390833500,1.04407534,105810.0,105800.0,1.45823416]
[1749390833799,1.04407534,105810.0,105800.0,1.75047936]
[1749390835298,1.04407534,105810.0,105800.0,1.45823416]
[1749390835998,1.04407534,105810.0,105800.0,1.66396687]
[1749390836391,1.61430624,105810.0,105800.0,1.27916687]
[1749390836591,1.61430624,105810.0,105800.0,0.42255403]
[1749390836791,2.16413024,105810.0,105800.0,0.27563741]
[1749390837400,2.16413024,105810.0,105800.0,0.2168773]
[1749390838795,2.16413024,105810.0,105800.0,0.06984546]
[1749390839402,2.16413024,105810.0,105800.0,0.405826]
[1749390839902,2.16413024,105810.0,105800.0,0.25879416]
[1749390840302,2.16413024,105810.0,105800.0,0.25879366]
[1749390841005,2.16413024,105810.0,105800.0,0.06984546]
[1749390841203,2.16413024,105810.0,105800.0,0.25879416]
[1749390841700,2.16413024,105810.0,105800.0,0.06984546]
[1749390843505,2.16413024,105810.0,105800.0,0.25879416]
[1749390843706,2.16413024,105810.0,105800.0,0.06984546]
[1749390844502,0.1889487,105800.0,105790.0,0.14703184]
[1749390844710,0.1889661,105790.0,105780.0,0.84863745]
[1749390844898,0.73259374,105790.0,105780.0,0.93483943]
[1749390845098,1.11489374,105790.0,105780.0,1.14085208]
[1749390845696,1.11489374,105790.0,105780.0,0.65962298]
[1749390846502,1.11489374,105790.0,105780.0,0.66162298]
[1749390846705,1.11489374,105790.0,105780.0,0.80873843]
[1749390846905,1.11489374,105790.0,105780.0,0.60272578]
[1749390847308,1.11489374,105790.0,105780.0,0.79472578]
[1749390848610,1.11489374,105790.0,105780.0,0.60272578]
[1749390848805,1.11489374,105790.0,105780.0,0.60279545]
[1749390850005,1.47569374,105790.0,105780.0,0.60079545]
[1749390850202,1.47769374,105790.0,105780.0,0.60079545]
[1749390850398,1.11689374,105790.0,105780.0,0.60079545]
[1749390850800,1.47769374,105790.0,105780.0,0.60079545]
[1749390851206,1.47769374,105790.0,105780.0,0.14711545]
[1749390851407,1.47769374,105790.0,105780.0,0.60079545]
[1749390851608,1.47769374,105790.0,105780.0,0.14711545]
[1749390851797,1.36785374,105790.0,105780.0,0.60079545]
[1749390852001,1.47969374,105790.0,105780.0,0.60079545]
[1749390852201,1.48169374,105790.0,105780.0,0.14711545]
[1749390853310,0.1889844,105780.0,105770.0,0.69705935]
[1749390853505,1.2063695,105780.0,105770.0,0.60075545]
[1749390853807,1.56742077,105780.0,105770.0,0.60075545]
[1749390854012,1.56742077,105780.0,105770.0,0.14711545]
[1749390854307,0.1890018,105770.0,105760.0,0.71086926]
[1749390854512,0.1890018,105770.0,105760.0,0.78730926]
[1749390854513,1.9087469,105770.0,105760.0,0.78730926]
[1749390854715,1.9087469,105770.0,105760.0,0.97632886]
[1749390855007,1.54819817,105770.0,105760.0,0.78730926]
[1749390855213,1.54819817,105770.0,105760.0,0.33366926]
[1749390855413,1.54819817,105770.0,105760.0,0.78730926]
[1749390855607,1.54819817,105770.0,105760.0,0.97732946]
[1749390855804,1.54819817,105770.0,105760.0,0.52368946]
[1749390856005,1.90899817,105770.0,105760.0,0.28935208]
[1749390856214,1.90899817,105770.0,105760.0,0.14223663]
[1749390856710,2.36259817,105770.0,105760.0,0.14223663]
[1749390856911,2.36259817,105770.0,105760.0,0.28935208]
[1749390857110,2.55169417,105770.0,105760.0,0.14223663]
[1749390858518,0.1890202,105760.0,105750.0,0.0001416]
[1749390858719,1.5554053,105760.0,105750.0,0.0001416]
[1749390859026,1.55565657,105760.0,105750.0,0.0001416]
[1749390859405,0.1890375,105750.0,105740.0,0.23599153]
[1749390859610,1.50131696,105750.0,105740.0,0.23599153]
[1749390860116,1.50156823,105750.0,105740.0,0.23599153]
[1749390860315,0.75146823,105750.0,105740.0,0.68963153]
[1749390860508,0.75146823,105750.0,105740.0,1.07913153]
[1749390861313,0.75246823,105750.0,105740.0,1.08213153]
[1749390861515,0.75246823,105750.0,105740.0,1.15850744]
[1749390862113,0.75246823,105750.0,105740.0,0.51581204]
[1749390862320,0.75346823,105750.0,105740.0,0.77551204]
[1749390862619,1.13176823,105750.0,105740.0,0.77551204]
[1749390863617,1.13176823,105750.0,105740.0,0.08237591]
[1749390863816,1.32246823,105750.0,105740.0,0.08237591]
[1749390864018,1.68326823,105750.0,105740.0,0.08237591]
[1749390865520,2.13690823,105750.0,105740.0,0.08237591]
[1749390866021,2.32604423,105750.0,105740.0,0.08237591]
[1749390867514,2.13690823,105750.0,105740.0,0.08237591]
[1749390867920,2.32604423,105750.0,105740.0,0.08237591]
[1749390868518,2.32604423,105750.0,105740.0,0.07937591]
[1749390868723,2.32404423,105750.0,105740.0,0.07837591]
[1749390869027,2.32404423,105750.0,105740.0,0.08037591]
[1749390869528,2.32404423,105750.0,105740.0,0.26943211]
[1749390870121,2.32404423,105750.0,105740.0,0.08037591]
[1749390871422,0.189074,105730.0,105720.0,0.45603035]
[1749390871723,1.5217191,105730.0,105720.0,0.45603035]
[1749390871925,1.54110015,105730.0,105720.0,0.45603035]
[1749390872227,1.91895142,105730.0,105720.0,0.45603035]
[1749390872721,1.55815142,105730.0,105720.0,0.45603035]
[1749390872920,1.91995142,105730.0,105720.0,0.46003035]
[1749390873423,1.55915142,105730.0,105720.0,0.64912225]
[1749390873729,1.44843142,105730.0,105720.0,0.64733035]
[1749390873912,1.18255142,105730.0,105720.0,1.19722225]
[1749390874113,1.18255142,105730.0,105720.0,0.83642225]
[1749390874319,1.18255142,105730.0,105720.0,1.00813035]
[1749390874521,1.18255142,105730.0,105720.0,0.72309364]
[1749390874814,1.18255142,105730.0,105720.0,0.72109364]
[1749390875013,1.18255142,105730.0,105720.0,0.72514242]
[1749390876932,1.07083142,105730.0,105720.0,0.72514242]
[1749390877117,1.18259142,105730.0,105720.0,0.72514242]
[1749390877821,1.18284269,105730.0,105720.0,0.72514242]
[1749390878218,1.73244269,105730.0,105720.0,0.72514242]
[1749390878421,0.1890919,105720.0,105710.0,0.50185975]
[1749390878622,0.80942827,105720.0,105710.0,0.91010317]
[1749390879027,0.80942827,105720.0,105710.0,1.10600317]
[1749390879224,0.80942827,105720.0,105710.0,0.95888772]
[1749390879426,0.99752827,105720.0,105710.0,0.95888772]
[1749390879628,0.99852827,105720.0,105710.0,0.96388772]
[1749390880321,0.99852827,105720.0,105710.0,1.15618772]
[1749390880526,0.99852827,105720.0,105710.0,1.34529752]
[1749390880726,0.81142827,105720.0,105710.0,1.34829752]
[1749390881136,0.81142827,105720.0,105710.0,1.15918772]
[1749390881634,0.11401127,105720.0,105710.0,1.70909752]
[1749390882530,0.11401127,105720.0,105710.0,1.85621297]
[1749390883035,0.11401127,105720.0,105710.0,1.70909752]
[1749390883236,0.00225127,105720.0,105710.0,1.70909752]
[1749390883424,0.11401127,105720.0,105710.0,1.70909752]
[1749390883928,0.54529637,105720.0,105710.0,1.70909752]
[1749390884449,0.73438827,105720.0,105710.0,1.70909752]
[1749390884842,0.73438827,105720.0,105710.0,1.25549752]
[1749390885038,0.73438827,105720.0,105710.0,0.89469752]
[1749390885347,0.92858827,105720.0,105710.0,1.34825752]
[1749390885541,0.92858827,105720.0,105710.0,1.70905752]
[1749390886049,0.92858827,105720.0,105710.0,1.70605752]
[1749390886345,0.92858827,105720.0,105710.0,1.34225752]
[1749390886346,0.92758827,105720.0,105710.0,1.34225752]
[1749390886541,0.92858827,105720.0,105710.0,1.34425752]
[1749390886738,0.73949637,105720.0,105710.0,1.70505752]
[1749390886940,0.92858827,105720.0,105710.0,1.70505752]
[1749390887339,0.92858827,105720.0,105710.0,1.34425752]
[1749390887742,0.92858827,105720.0,105710.0,1.15191752]
[1749390887938,1.12398827,105720.0,105710.0,1.15191752]
[1749390888445,1.12398827,105720.0,105710.0,1.51271752]
[1749390888651,0.93489637,105720.0,105710.0,1.51271752]
[1749390889049,0.82333637,105720.0,105710.0,1.69581752]
[1749390889251,0.54509637,105720.0,105710.0,1.6998663]
[1749390889456,0.11381127,105720.0,105710.0,1.6998663]
[1749390890746,0.11381127,105720.0,105710.0,1.6998263]
[1749390891148,0.00225127,105720.0,105710.0,1.6998263]
[1749390891344,0.11381127,105720.0,105710.0,1.6998263]
[1749390891549,0.11381127,105720.0,105710.0,1.84694175]
[1749390891749,0.11381127,105720.0,105710.0,1.6998263]
[1749390892560,0.11381127,105720.0,105710.0,1.84694175]
[1749390893759,0.54509637,105720.0,105710.0,1.84694175]
[1749390895659,0.11381127,105720.0,105710.0,1.84694175]
[1749390895868,0.11381127,105720.0,105710.0,1.6998263]
[1749390896158,0.11381127,105720.0,105710.0,2.3390103]
[1749390896550,0.11156,105720.0,105710.0,2.3390103]
[1749390896757,0.38142482,105730.0,105720.0,0.1890919]
[1749390896952,0.49298482,105730.0,105720.0,1.33220874]
[1749390897259,0.49298482,105730.0,105720.0,1.52137674]
[1749390897749,0.27140636,105730.0,105720.0,1.52137674]
[1749390897953,0.11156,105730.0,105720.0,1.91864584]
[1749390898152,0.93287596,105750.0,105740.0,0.1890561]
[1749390898354,1.04406076,105750.0,105740.0,1.20949385]
[1749390898553,1.04426076,105750.0,105740.0,1.20949385]
[1749390898753,1.04426076,105750.0,105740.0,1.59549385]
[1749390899055,1.04426076,105750.0,105740.0,1.3892561]
[1749390899257,1.04426076,105750.0,105740.0,1.59549385]
[1749390899659,1.04726076,105750.0,105740.0,1.59649385]
[1749390899965,1.05026076,105750.0,105740.0,1.53840782]